[Event "Titled Tuesday Blitz January 11 2022"]
[White "Pakleza, Zbigniew"]
[Black "Pinheiro, Iung Alicio de O."]
[WhiteFideId "1119290"]
[BlackFideId "2104350"]
[WhiteElo "2467"]
[BlackElo "2606"]
[Result "1-0"]
[Round "09"]
[TimeControl "180+1"]
[Date "2022.01.11"]
[WhiteClock "0:00:06"]
[BlackClock "0:00:06"]

1. d4 {[%clk 0:03:00]}  Nf6 {[%clk 0:02:57]} 2. Nf3 {[%clk 0:02:59]}  g6 {[%clk 0:02:56]} 3. Bf4 {[%clk 0:02:56]}  Bg7 {[%clk 0:02:51]} 4. e3 {[%clk 0:02:57]}  d6 {[%clk 0:02:50]} 5. h3 {[%clk 0:02:55]}  O-O {[%clk 0:02:49]} 6. Be2 {[%clk 0:02:55]}  c5 {[%clk 0:02:50]} 7. c3 {[%clk 0:02:55]}  Be6 {[%clk 0:02:49]} 8. dxc5 {[%clk 0:02:55]}  dxc5 {[%clk 0:02:48]} 9. Qxd8 {[%clk 0:02:56]}  Rxd8 {[%clk 0:02:49]} 10. Nbd2 {[%clk 0:02:56]}  Nc6 {[%clk 0:02:47]} 11. a4 {[%clk 0:02:56]}  Nd5 {[%clk 0:02:38]} 12. Bg3 {[%clk 0:02:53]}  Na5 {[%clk 0:02:29]} 13. O-O {[%clk 0:02:42]}  Rac8 {[%clk 0:02:28]} 14. Rfd1 {[%clk 0:02:24]}  Nb6 {[%clk 0:02:27]} 15. Kf1 {[%clk 0:01:39]}  h6 {[%clk 0:02:22]} 16. Ke1 {[%clk 0:01:37]}  Nb3 {[%clk 0:01:57]} 17. Nxb3 {[%clk 0:01:35]}  Bxb3 {[%clk 0:01:58]} 18. Rxd8+ {[%clk 0:01:32]}  Rxd8 {[%clk 0:01:58]} 19. Nd2 {[%clk 0:01:24]}  Be6 {[%clk 0:01:34]} 20. a5 {[%clk 0:01:20]}  Nd5 {[%clk 0:01:29]} 21. Ra3 {[%clk 0:00:23]}  f5 {[%clk 0:01:12]} 22. e4 {[%clk 0:00:20]}  Nf6 {[%clk 0:01:06]} 23. f3 {[%clk 0:00:21]}  Nh5 {[%clk 0:01:03]} 24. Bh2 {[%clk 0:00:20]}  f4 {[%clk 0:00:56]} 25. Bc4 {[%clk 0:00:17]}  Kf7 {[%clk 0:00:55]} 26. Rb3 {[%clk 0:00:16]}  Rd7 {[%clk 0:00:52]} 27. Bg1 {[%clk 0:00:15]}  Rc7 {[%clk 0:00:51]} 28. Rb5 {[%clk 0:00:12]}  b6 {[%clk 0:00:43]} 29. axb6 {[%clk 0:00:12]}  axb6 {[%clk 0:00:44]} 30. Bxe6+ {[%clk 0:00:13]}  Kxe6 {[%clk 0:00:44]} 31. Rxb6+ {[%clk 0:00:14]}  Kf7 {[%clk 0:00:45]} 32. Nc4 {[%clk 0:00:13]}  Ra7 {[%clk 0:00:44]} 33. Bxc5 {[%clk 0:00:11]}  Ra1+ {[%clk 0:00:43]} 34. Kd2 {[%clk 0:00:10]}  Ng3 {[%clk 0:00:38]} 35. Kc2 {[%clk 0:00:10]}  Rh1 {[%clk 0:00:28]} 36. Rb7 {[%clk 0:00:10]}  Bf8 {[%clk 0:00:28]} 37. Ne5+ {[%clk 0:00:09]}  Kf6 {[%clk 0:00:18]} 38. Nd7+ {[%clk 0:00:10]}  Kf7 {[%clk 0:00:18]} 39. Nxf8 {[%clk 0:00:11]}  Kxf8 {[%clk 0:00:19]} 40. Bxe7+ {[%clk 0:00:11]}  Ke8 {[%clk 0:00:19]} 41. Bd6 {[%clk 0:00:11]}  g5 {[%clk 0:00:19]} 42. c4 {[%clk 0:00:10]}  Rh2 {[%clk 0:00:19]} 43. c5 {[%clk 0:00:11]}  Rxg2+ {[%clk 0:00:20]} 44. Kb3 {[%clk 0:00:12]}  Ne2 {[%clk 0:00:20]} 45. Be5 {[%clk 0:00:10]}  Nc1+ {[%clk 0:00:19]} 46. Kc4 {[%clk 0:00:11]}  Rc2+ {[%clk 0:00:18]} 47. Kd5 {[%clk 0:00:12]}  Nd3 {[%clk 0:00:18]} 48. Bd6 {[%clk 0:00:11]}  Rxb2 {[%clk 0:00:15]} 49. Rh7 {[%clk 0:00:07]}  Kd8 {[%clk 0:00:07]} 50. Ke6 {[%clk 0:00:06]}  Kc8 {[%clk 0:00:06]} 51. c6 {[%clk 0:00:06]} 1-0


[Site "https://www.chess.com"]

[Event "Titled Tuesday Blitz January 11 2022"]
[White "Papasimakopoulos, Alexandros"]
[Black "Migot, Tangi"]
[WhiteFideId "4244125"]
[BlackFideId "662445"]
[WhiteElo "2340"]
[BlackElo "2548"]
[Result "1-0"]
[Round "09"]
[TimeControl "180+1"]
[Date "2022.01.11"]
[WhiteClock "0:00:22"]
[BlackClock "0:00:09"]

1. d4 {[%clk 0:02:35]}  Nf6 {[%clk 0:02:58]} 2. c4 {[%clk 0:02:32]}  g6 {[%clk 0:02:58]} 3. Nc3 {[%clk 0:02:31]}  d5 {[%clk 0:02:58]} 4. Nf3 {[%clk 0:02:29]}  Bg7 {[%clk 0:02:57]} 5. cxd5 {[%clk 0:02:19]}  Nxd5 {[%clk 0:02:58]} 6. e4 {[%clk 0:02:19]}  Nxc3 {[%clk 0:02:59]} 7. bxc3 {[%clk 0:02:19]}  c5 {[%clk 0:02:59]} 8. Bb5+ {[%clk 0:02:20]}  Bd7 {[%clk 0:02:58]} 9. Be2 {[%clk 0:02:19]}  O-O {[%clk 0:02:56]} 10. O-O {[%clk 0:02:17]}  Bg4 {[%clk 0:02:56]} 11. Be3 {[%clk 0:02:13]}  Qa5 {[%clk 0:02:53]} 12. Qb3 {[%clk 0:02:03]}  cxd4 {[%clk 0:02:30]} 13. cxd4 {[%clk 0:02:02]}  Nc6 {[%clk 0:02:17]} 14. Rad1 {[%clk 0:02:01]}  Qb4 {[%clk 0:01:55]} 15. d5 {[%clk 0:01:29]}  Qxb3 {[%clk 0:01:52]} 16. axb3 {[%clk 0:01:28]}  Ne5 {[%clk 0:01:45]} 17. Rc1 {[%clk 0:01:25]}  Rfc8 {[%clk 0:01:35]} 18. h3 {[%clk 0:01:03]}  Nxf3+ {[%clk 0:01:28]} 19. Bxf3 {[%clk 0:01:00]}  Bxf3 {[%clk 0:01:28]} 20. gxf3 {[%clk 0:01:01]}  a6 {[%clk 0:01:26]} 21. Bb6 {[%clk 0:00:59]}  Bb2 {[%clk 0:01:23]} 22. Rc4 {[%clk 0:00:54]}  Rxc4 {[%clk 0:00:42]} 23. bxc4 {[%clk 0:00:55]}  Rc8 {[%clk 0:00:42]} 24. Rb1 {[%clk 0:00:49]}  Ba3 {[%clk 0:00:41]} 25. Be3 {[%clk 0:00:47]}  Rxc4 {[%clk 0:00:35]} 26. Rxb7 {[%clk 0:00:46]}  a5 {[%clk 0:00:26]} 27. Bh6 {[%clk 0:00:45]}  Rc8 {[%clk 0:00:23]} 28. Ra7 {[%clk 0:00:41]}  Bb4 {[%clk 0:00:23]} 29. Kg2 {[%clk 0:00:37]}  f6 {[%clk 0:00:23]} 30. Bf4 {[%clk 0:00:35]}  g5 {[%clk 0:00:19]} 31. Be3 {[%clk 0:00:32]}  Kf7 {[%clk 0:00:17]} 32. f4 {[%clk 0:00:32]}  gxf4 {[%clk 0:00:16]} 33. Bxf4 {[%clk 0:00:33]}  Ke8 {[%clk 0:00:15]} 34. Kf3 {[%clk 0:00:33]}  Rc3+ {[%clk 0:00:15]} 35. Kg4 {[%clk 0:00:33]}  Rc2 {[%clk 0:00:13]} 36. Bg3 {[%clk 0:00:28]}  Rc4 {[%clk 0:00:12]} 37. Kf5 {[%clk 0:00:28]}  Kd8 {[%clk 0:00:11]} 38. f3 {[%clk 0:00:27]}  Bc3 {[%clk 0:00:09]} 39. Ke6 {[%clk 0:00:26]}  Bb4 {[%clk 0:00:09]} 40. h4 {[%clk 0:00:23]}  Rc3 {[%clk 0:00:09]} 41. h5 {[%clk 0:00:22]}  Rxf3 {[%clk 0:00:09]} 42. Ra8# {[%clk 0:00:22]} 1-0


[Site "https://www.chess.com"]

[Event "Titled Tuesday Blitz January 11 2022"]
[White "Seul, Georg"]
[Black "Shkapenko, Pavel"]
[WhiteFideId "4601653"]
[BlackFideId "4151933"]
[WhiteElo "2271"]
[BlackElo "2386"]
[Result "0-1"]
[Round "09"]
[TimeControl "180+1"]
[Date "2022.01.11"]
[WhiteClock "0:00:02"]
[BlackClock "0:00:16"]

1. e4 {[%clk 0:03:00]}  e5 {[%clk 0:02:57]} 2. Nc3 {[%clk 0:03:00]}  Nf6 {[%clk 0:02:55]} 3. f4 {[%clk 0:03:00]}  d5 {[%clk 0:02:55]} 4. fxe5 {[%clk 0:03:00]}  Nxe4 {[%clk 0:02:55]} 5. Qf3 {[%clk 0:03:01]}  Nc6 {[%clk 0:02:54]} 6. Bb5 {[%clk 0:03:00]}  Nxc3 {[%clk 0:02:53]} 7. dxc3 {[%clk 0:02:59]}  Qh4+ {[%clk 0:02:54]} 8. g3 {[%clk 0:03:00]}  Qe4+ {[%clk 0:02:55]} 9. Qxe4 {[%clk 0:03:00]}  dxe4 {[%clk 0:02:56]} 10. Bxc6+ {[%clk 0:03:00]}  bxc6 {[%clk 0:02:56]} 11. Be3 {[%clk 0:03:01]}  h5 {[%clk 0:02:55]} 12. h3 {[%clk 0:02:59]}  Be6 {[%clk 0:02:20]} 13. Ne2 {[%clk 0:02:59]}  O-O-O {[%clk 0:02:17]} 14. Nd4 {[%clk 0:02:52]}  Bd7 {[%clk 0:02:13]} 15. Nb3 {[%clk 0:02:45]}  Re8 {[%clk 0:02:09]} 16. Bxa7 {[%clk 0:02:42]}  Rxe5 {[%clk 0:02:09]} 17. Be3 {[%clk 0:02:42]}  Rf5 {[%clk 0:02:04]} 18. Nd4 {[%clk 0:02:37]}  Rf6 {[%clk 0:01:59]} 19. O-O-O {[%clk 0:02:33]}  c5 {[%clk 0:01:59]} 20. Nb3 {[%clk 0:02:32]}  Rf3 {[%clk 0:01:59]} 21. Bxc5 {[%clk 0:02:27]}  Rxg3 {[%clk 0:01:58]} 22. h4 {[%clk 0:02:11]}  Bg4 {[%clk 0:01:27]} 23. Rd4 {[%clk 0:02:05]}  g6 {[%clk 0:01:16]} 24. Bxf8 {[%clk 0:02:01]}  Bf3 {[%clk 0:01:09]} 25. Bg7 {[%clk 0:01:18]}  Rg8 {[%clk 0:00:59]} 26. Be5 {[%clk 0:01:17]}  Rg4 {[%clk 0:01:00]} 27. Re1 {[%clk 0:01:14]}  Re8 {[%clk 0:00:59]} 28. Bf6 {[%clk 0:01:13]}  e3 {[%clk 0:00:55]} 29. Bg5 {[%clk 0:00:48]}  e2 {[%clk 0:00:50]} 30. Nd2 {[%clk 0:00:47]}  Bb7 {[%clk 0:00:42]} 31. Nc4 {[%clk 0:00:23]}  Bf3 {[%clk 0:00:34]} 32. Kd2 {[%clk 0:00:22]}  f5 {[%clk 0:00:31]} 33. Bf4 {[%clk 0:00:18]}  Rxh4 {[%clk 0:00:29]} 34. Ne5 {[%clk 0:00:16]}  Be4 {[%clk 0:00:24]} 35. Nxg6 {[%clk 0:00:16]}  Rg4 {[%clk 0:00:24]} 36. Rxe2 {[%clk 0:00:12]}  Rxg6 {[%clk 0:00:24]} 37. c4 {[%clk 0:00:10]}  Rg4 {[%clk 0:00:24]} 38. Bh2 {[%clk 0:00:10]}  h4 {[%clk 0:00:22]} 39. a4 {[%clk 0:00:10]}  h3 {[%clk 0:00:20]} 40. a5 {[%clk 0:00:10]}  Rg2 {[%clk 0:00:20]} 41. b4 {[%clk 0:00:06]}  Bf3 {[%clk 0:00:16]} 42. Rxg2 {[%clk 0:00:04]}  hxg2 {[%clk 0:00:17]} 43. Rd3 {[%clk 0:00:02]}  Rh8 {[%clk 0:00:16]} 0-1


[Site "https://www.chess.com"]

[Event "Titled Tuesday Blitz January 11 2022"]
[White "Shapkin, Anatoliy"]
[Black "Jary, Sergey"]
[WhiteFideId "34108332"]
[BlackFideId "14110350"]
[WhiteElo "2223"]
[BlackElo "2260"]
[Result "1-0"]
[Round "09"]
[TimeControl "180+1"]
[Date "2022.01.11"]
[WhiteClock "0:00:43"]
[BlackClock "0:01:33"]

1. d4 {[%clk 0:02:26]}  Nf6 {[%clk 0:02:59]} 2. c4 {[%clk 0:02:25]}  g6 {[%clk 0:02:58]} 3. Nc3 {[%clk 0:02:25]}  d5 {[%clk 0:02:58]} 4. Nf3 {[%clk 0:02:25]}  Bg7 {[%clk 0:02:57]} 5. cxd5 {[%clk 0:02:25]}  Nxd5 {[%clk 0:02:57]} 6. e4 {[%clk 0:02:26]}  Nb6 {[%clk 0:02:57]} 7. h3 {[%clk 0:02:22]}  O-O {[%clk 0:02:56]} 8. Be3 {[%clk 0:02:23]}  Nc6 {[%clk 0:02:55]} 9. Be2 {[%clk 0:02:22]}  e5 {[%clk 0:02:55]} 10. d5 {[%clk 0:02:19]}  Ne7 {[%clk 0:02:51]} 11. O-O {[%clk 0:02:16]}  f5 {[%clk 0:02:48]} 12. Bc5 {[%clk 0:02:16]}  fxe4 {[%clk 0:02:47]} 13. Ng5 {[%clk 0:02:16]}  Nbxd5 {[%clk 0:02:41]} 14. Nxd5 {[%clk 0:02:15]}  Nxd5 {[%clk 0:02:40]} 15. Bxf8 {[%clk 0:02:14]}  Bxf8 {[%clk 0:02:39]} 16. Bc4 {[%clk 0:02:11]}  c6 {[%clk 0:02:39]} 17. Nxe4 {[%clk 0:02:09]}  Bg7 {[%clk 0:02:38]} 18. Qb3 {[%clk 0:02:06]}  b5 {[%clk 0:02:38]} 19. Bxd5+ {[%clk 0:02:00]}  Qxd5 {[%clk 0:02:38]} 20. Nc3 {[%clk 0:02:01]}  Qxb3 {[%clk 0:02:38]} 21. axb3 {[%clk 0:02:00]}  Kf7 {[%clk 0:02:32]} 22. Rfd1 {[%clk 0:01:58]}  Ke7 {[%clk 0:02:29]} 23. Ne4 {[%clk 0:01:58]}  a5 {[%clk 0:02:27]} 24. Rac1 {[%clk 0:01:53]}  Ra6 {[%clk 0:02:27]} 25. g4 {[%clk 0:01:39]}  Bh6 {[%clk 0:02:22]} 26. Rc3 {[%clk 0:01:37]}  Bf4 {[%clk 0:02:18]} 27. Rd6 {[%clk 0:01:27]}  h5 {[%clk 0:02:14]} 28. Rdxc6 {[%clk 0:01:24]}  Rxc6 {[%clk 0:02:14]} 29. Rxc6 {[%clk 0:01:25]}  Bd7 {[%clk 0:02:14]} 30. Rxg6 {[%clk 0:01:24]}  hxg4 {[%clk 0:02:14]} 31. hxg4 {[%clk 0:01:25]}  Kf7 {[%clk 0:02:13]} 32. Ra6 {[%clk 0:01:21]}  Bxg4 {[%clk 0:02:11]} 33. Rxa5 {[%clk 0:01:19]}  Be2 {[%clk 0:02:11]} 34. Nd6+ {[%clk 0:01:14]}  Ke6 {[%clk 0:02:11]} 35. Nxb5 {[%clk 0:01:15]}  Bd2 {[%clk 0:02:10]} 36. Nc3 {[%clk 0:01:15]}  Bd3 {[%clk 0:02:08]} 37. Rd5 {[%clk 0:01:12]}  e4 {[%clk 0:02:07]} 38. Nxe4 {[%clk 0:01:12]}  Kxd5 {[%clk 0:02:05]} 39. Nxd2 {[%clk 0:01:12]}  Kd4 {[%clk 0:02:03]} 40. Kg2 {[%clk 0:01:13]}  Be2 {[%clk 0:02:02]} 41. Kg3 {[%clk 0:01:11]}  Kd3 {[%clk 0:02:03]} 42. Nf3 {[%clk 0:01:02]}  Bd1 {[%clk 0:02:02]} 43. b4 {[%clk 0:01:01]}  Kc4 {[%clk 0:02:01]} 44. Ne5+ {[%clk 0:00:50]}  Kxb4 {[%clk 0:02:00]} 45. Kf4 {[%clk 0:00:50]}  Kb3 {[%clk 0:01:59]} 46. Nd3 {[%clk 0:00:49]}  Bh5 {[%clk 0:01:51]} 47. Ke3 {[%clk 0:00:47]}  Kc2 {[%clk 0:01:46]} 48. f4 {[%clk 0:00:47]}  Bg6 {[%clk 0:01:43]} 49. Ne5 {[%clk 0:00:47]}  Bf5 {[%clk 0:01:43]} 50. b4 {[%clk 0:00:47]}  Kc3 {[%clk 0:01:42]} 51. b5 {[%clk 0:00:47]}  Kb4 {[%clk 0:01:40]} 52. b6 {[%clk 0:00:48]}  Bc8 {[%clk 0:01:40]} 53. Kd4 {[%clk 0:00:45]}  Kb5 {[%clk 0:01:40]} 54. Nc4 {[%clk 0:00:44]}  Kc6 {[%clk 0:01:36]} 55. Ke5 {[%clk 0:00:44]}  Kc5 {[%clk 0:01:35]} 56. Nd6 {[%clk 0:00:43]}  Ba6 {[%clk 0:01:33]} 57. b7 {[%clk 0:00:43]} 1-0


[Site "https://www.chess.com"]

[Event "Titled Tuesday Blitz January 11 2022"]
[White "Sipetin, Vladislav"]
[Black "Jones, Gawain C B"]
[WhiteFideId "24176893"]
[BlackFideId "409561"]
[WhiteElo "2228"]
[BlackElo "2657"]
[Result "1-0"]
[Round "09"]
[TimeControl "180+1"]
[Date "2022.01.11"]
[WhiteClock "0:00:28"]
[BlackClock "0:00:13"]

1. e4 {[%clk 0:03:00]}  c6 {[%clk 0:02:56]} 2. Nf3 {[%clk 0:02:58]}  g6 {[%clk 0:02:55]} 3. d4 {[%clk 0:02:58]}  Bg7 {[%clk 0:02:55]} 4. c3 {[%clk 0:02:58]}  d6 {[%clk 0:02:55]} 5. Bd3 {[%clk 0:02:57]}  Nf6 {[%clk 0:02:55]} 6. O-O {[%clk 0:02:58]}  Bg4 {[%clk 0:02:55]} 7. Nbd2 {[%clk 0:02:58]}  O-O {[%clk 0:02:55]} 8. h3 {[%clk 0:02:58]}  Bxf3 {[%clk 0:02:55]} 9. Nxf3 {[%clk 0:02:59]}  Nbd7 {[%clk 0:02:56]} 10. a4 {[%clk 0:02:40]}  e5 {[%clk 0:02:55]} 11. dxe5 {[%clk 0:02:36]}  Nxe5 {[%clk 0:02:53]} 12. Nxe5 {[%clk 0:02:36]}  dxe5 {[%clk 0:02:53]} 13. Bc2 {[%clk 0:02:36]}  a5 {[%clk 0:02:51]} 14. Be3 {[%clk 0:02:28]}  Qe7 {[%clk 0:02:48]} 15. Qe2 {[%clk 0:02:28]}  Nd7 {[%clk 0:02:44]} 16. Rfd1 {[%clk 0:02:21]}  Nc5 {[%clk 0:02:44]} 17. Rd2 {[%clk 0:02:13]}  Rfd8 {[%clk 0:02:40]} 18. Rad1 {[%clk 0:02:13]}  Ne6 {[%clk 0:02:37]} 19. Bb3 {[%clk 0:02:06]}  Rxd2 {[%clk 0:02:34]} 20. Rxd2 {[%clk 0:02:06]}  Nc5 {[%clk 0:02:27]} 21. Bxc5 {[%clk 0:02:01]}  Qxc5 {[%clk 0:02:28]} 22. Rd7 {[%clk 0:02:01]}  b5 {[%clk 0:02:23]} 23. Qf3 {[%clk 0:01:54]}  Rf8 {[%clk 0:02:08]} 24. Rxf7 {[%clk 0:01:53]}  Kh8 {[%clk 0:02:08]} 25. h4 {[%clk 0:01:31]}  bxa4 {[%clk 0:02:06]} 26. Bxa4 {[%clk 0:01:32]}  h5 {[%clk 0:01:47]} 27. g3 {[%clk 0:01:29]}  Kh7 {[%clk 0:01:37]} 28. Kg2 {[%clk 0:01:17]}  Rxf7 {[%clk 0:01:19]} 29. Qxf7 {[%clk 0:01:18]}  Qd6 {[%clk 0:01:16]} 30. Qb7 {[%clk 0:01:12]}  c5 {[%clk 0:01:12]} 31. Qa7 {[%clk 0:01:06]}  Qd3 {[%clk 0:01:05]} 32. Bc6 {[%clk 0:01:05]}  Qc2 {[%clk 0:00:34]} 33. Qxa5 {[%clk 0:01:00]}  Qxb2 {[%clk 0:00:34]} 34. Qxc5 {[%clk 0:01:00]}  Kh6 {[%clk 0:00:32]} 35. Bd5 {[%clk 0:00:57]}  Qd2 {[%clk 0:00:28]} 36. Qc6 {[%clk 0:00:53]}  Kh7 {[%clk 0:00:26]} 37. Bf7 {[%clk 0:00:46]}  Qh6 {[%clk 0:00:26]} 38. Qe6 {[%clk 0:00:42]}  g5 {[%clk 0:00:17]} 39. Qf5+ {[%clk 0:00:40]}  Kh8 {[%clk 0:00:17]} 40. Qxg5 {[%clk 0:00:33]}  Qxg5 {[%clk 0:00:17]} 41. hxg5 {[%clk 0:00:34]}  Bf8 {[%clk 0:00:16]} 42. Bxh5 {[%clk 0:00:34]}  Ba3 {[%clk 0:00:16]} 43. f4 {[%clk 0:00:33]}  Bb2 {[%clk 0:00:16]} 44. c4 {[%clk 0:00:33]}  Kg7 {[%clk 0:00:16]} 45. Kf3 {[%clk 0:00:33]}  Ba3 {[%clk 0:00:15]} 46. Kg4 {[%clk 0:00:33]}  Kf8 {[%clk 0:00:14]} 47. Kf5 {[%clk 0:00:33]}  Bb2 {[%clk 0:00:13]} 48. c5 {[%clk 0:00:27]}  Ke7 {[%clk 0:00:13]} 49. c6 {[%clk 0:00:27]}  Kd6 {[%clk 0:00:13]} 50. g6 {[%clk 0:00:28]}  exf4 {[%clk 0:00:12]} 51. gxf4 {[%clk 0:00:29]}  Bh8 {[%clk 0:00:12]} 52. e5+ {[%clk 0:00:27]}  Kxc6 {[%clk 0:00:13]} 53. Ke6 {[%clk 0:00:28]} 1-0


[Site "https://www.chess.com"]

[Event "Titled Tuesday Blitz January 11 2022"]
[White "Sjugirov, Sanan"]
[Black "Moroni, Luca Jr"]
[WhiteFideId "4189302"]
[BlackFideId "865834"]
[WhiteElo "2602"]
[BlackElo "2573"]
[Result "1-0"]
[Round "09"]
[TimeControl "180+1"]
[Date "2022.01.11"]
[WhiteClock "0:00:04"]
[BlackClock "0:00:03"]

1. e4 {[%clk 0:03:00]}  e5 {[%clk 0:02:59]} 2. Nf3 {[%clk 0:03:00]}  d6 {[%clk 0:02:59]} 3. d4 {[%clk 0:02:59]}  exd4 {[%clk 0:03:00]} 4. Qxd4 {[%clk 0:02:58]}  Nf6 {[%clk 0:03:00]} 5. Nc3 {[%clk 0:02:58]}  Be7 {[%clk 0:03:00]} 6. Bg5 {[%clk 0:02:43]}  O-O {[%clk 0:03:00]} 7. O-O-O {[%clk 0:02:42]}  h6 {[%clk 0:02:59]} 8. Bf4 {[%clk 0:02:35]}  Nc6 {[%clk 0:02:57]} 9. Qd2 {[%clk 0:02:35]}  Be6 {[%clk 0:02:51]} 10. h3 {[%clk 0:02:26]}  Nd7 {[%clk 0:02:27]} 11. Nd5 {[%clk 0:02:23]}  Bxd5 {[%clk 0:02:25]} 12. exd5 {[%clk 0:02:23]}  Nce5 {[%clk 0:02:25]} 13. Nxe5 {[%clk 0:02:15]}  Nxe5 {[%clk 0:02:21]} 14. Be3 {[%clk 0:02:07]}  Bf6 {[%clk 0:02:18]} 15. f4 {[%clk 0:02:06]}  Nd7 {[%clk 0:02:16]} 16. g4 {[%clk 0:02:03]}  Re8 {[%clk 0:02:17]} 17. Rg1 {[%clk 0:01:32]}  Qe7 {[%clk 0:01:42]} 18. Bf2 {[%clk 0:01:32]}  Nc5 {[%clk 0:01:35]} 19. g5 {[%clk 0:01:02]}  hxg5 {[%clk 0:01:35]} 20. fxg5 {[%clk 0:01:02]}  Be5 {[%clk 0:01:31]} 21. Bxc5 {[%clk 0:00:58]}  dxc5 {[%clk 0:01:31]} 22. c3 {[%clk 0:00:57]}  Qd6 {[%clk 0:01:26]} 23. Rg4 {[%clk 0:00:50]}  g6 {[%clk 0:01:16]} 24. h4 {[%clk 0:00:50]}  Bg7 {[%clk 0:01:06]} 25. Kb1 {[%clk 0:00:42]}  Re5 {[%clk 0:01:03]} 26. c4 {[%clk 0:00:21]}  Rae8 {[%clk 0:01:00]} 27. Bd3 {[%clk 0:00:22]}  Re3 {[%clk 0:00:56]} 28. a3 {[%clk 0:00:19]}  Qe5 {[%clk 0:00:52]} 29. Qc2 {[%clk 0:00:19]}  Re1 {[%clk 0:00:39]} 30. Rxe1 {[%clk 0:00:19]}  Qxe1+ {[%clk 0:00:40]} 31. Ka2 {[%clk 0:00:20]}  Re3 {[%clk 0:00:29]} 32. h5 {[%clk 0:00:16]}  gxh5 {[%clk 0:00:28]} 33. Rg2 {[%clk 0:00:16]}  h4 {[%clk 0:00:26]} 34. Bh7+ {[%clk 0:00:14]}  Kf8 {[%clk 0:00:25]} 35. Qf5 {[%clk 0:00:12]}  Re2 {[%clk 0:00:08]} 36. g6 {[%clk 0:00:09]}  f6 {[%clk 0:00:03]} 37. Qc8+ {[%clk 0:00:09]}  Re8 {[%clk 0:00:03]} 38. Qxc7 {[%clk 0:00:09]}  Qe7 {[%clk 0:00:03]} 39. Qf4 {[%clk 0:00:09]}  Qe5 {[%clk 0:00:03]} 40. Qxh4 {[%clk 0:00:09]}  b5 {[%clk 0:00:02]} 41. d6 {[%clk 0:00:06]}  Qxd6 {[%clk 0:00:02]} 42. Qg4 {[%clk 0:00:06]}  bxc4 {[%clk 0:00:02]} 43. Qxc4 {[%clk 0:00:06]}  Qe6 {[%clk 0:00:02]} 44. Rc2 {[%clk 0:00:05]}  Qxc4+ {[%clk 0:00:02]} 45. Rxc4 {[%clk 0:00:06]}  Re5 {[%clk 0:00:02]} 46. Ra4 {[%clk 0:00:06]}  Re7 {[%clk 0:00:02]} 47. Ra5 {[%clk 0:00:06]}  Rc7 {[%clk 0:00:03]} 48. Rb5 {[%clk 0:00:07]}  f5 {[%clk 0:00:03]} 49. Rb8+ {[%clk 0:00:07]}  Ke7 {[%clk 0:00:04]} 50. Bg8 {[%clk 0:00:07]}  Kf6 {[%clk 0:00:04]} 51. Bf7 {[%clk 0:00:07]}  f4 {[%clk 0:00:04]} 52. Rb3 {[%clk 0:00:05]}  Kg5 {[%clk 0:00:03]} 53. Rd3 {[%clk 0:00:04]}  Rb7 {[%clk 0:00:02]} 54. b3 {[%clk 0:00:03]}  Rc7 {[%clk 0:00:03]} 55. Rd5+ {[%clk 0:00:03]}  Kg4 {[%clk 0:00:03]} 56. Be6+ {[%clk 0:00:03]}  Kf3 {[%clk 0:00:04]} 57. Rf5 {[%clk 0:00:04]}  Ke4 {[%clk 0:00:04]} 58. Rf7 {[%clk 0:00:04]}  Ke5 {[%clk 0:00:04]} 59. Rxc7 {[%clk 0:00:03]}  Kxe6 {[%clk 0:00:03]} 60. Rxg7 {[%clk 0:00:04]} 1-0


[Site "https://www.chess.com"]

[Event "Titled Tuesday Blitz January 11 2022"]
[White "Svane, Frederik"]
[Black "Daneshvar, Bardiya"]
[WhiteFideId "12923044"]
[BlackFideId "12576468"]
[WhiteElo "2459"]
[BlackElo "2295"]
[Result "0-1"]
[Round "09"]
[TimeControl "180+1"]
[Date "2022.01.11"]
[WhiteClock "0:00:01"]
[BlackClock "0:00:19"]

1. e4 {[%clk 0:02:16]}  c6 {[%clk 0:02:59]} 2. d4 {[%clk 0:02:16]}  d5 {[%clk 0:02:59]} 3. exd5 {[%clk 0:02:17]}  cxd5 {[%clk 0:02:59]} 4. Nf3 {[%clk 0:02:18]}  Nf6 {[%clk 0:02:59]} 5. c3 {[%clk 0:02:19]}  Nc6 {[%clk 0:02:59]} 6. Ne5 {[%clk 0:02:19]}  Qc7 {[%clk 0:02:52]} 7. Bf4 {[%clk 0:02:17]}  Qb6 {[%clk 0:02:44]} 8. Qb3 {[%clk 0:02:14]}  Nh5 {[%clk 0:02:36]} 9. Be3 {[%clk 0:02:10]}  e6 {[%clk 0:02:30]} 10. Be2 {[%clk 0:02:02]}  Nf6 {[%clk 0:02:27]} 11. Nd2 {[%clk 0:02:00]}  Nd7 {[%clk 0:02:22]} 12. Nd3 {[%clk 0:01:55]}  Bd6 {[%clk 0:02:16]} 13. O-O {[%clk 0:01:55]}  O-O {[%clk 0:02:14]} 14. Nf3 {[%clk 0:01:55]}  Na5 {[%clk 0:02:13]} 15. Qc2 {[%clk 0:01:51]}  Qc7 {[%clk 0:02:09]} 16. Rfe1 {[%clk 0:01:37]}  b6 {[%clk 0:02:02]} 17. Bf1 {[%clk 0:01:36]}  Ba6 {[%clk 0:01:58]} 18. Nfe5 {[%clk 0:01:05]}  Bxe5 {[%clk 0:01:43]} 19. dxe5 {[%clk 0:00:56]}  Bxd3 {[%clk 0:01:41]} 20. Bxd3 {[%clk 0:00:56]}  g6 {[%clk 0:01:40]} 21. Bh6 {[%clk 0:00:53]}  Rfc8 {[%clk 0:01:38]} 22. Qe2 {[%clk 0:00:52]}  Nc4 {[%clk 0:01:36]} 23. Bf4 {[%clk 0:00:50]}  b5 {[%clk 0:01:15]} 24. h4 {[%clk 0:00:48]}  Nc5 {[%clk 0:01:08]} 25. Bb1 {[%clk 0:00:39]}  Na4 {[%clk 0:01:00]} 26. Bg5 {[%clk 0:00:08]}  Ncxb2 {[%clk 0:00:54]} 27. Bf6 {[%clk 0:00:08]}  Qxc3 {[%clk 0:00:52]} 28. h5 {[%clk 0:00:03]}  Nc4 {[%clk 0:00:42]} 29. Bd3 {[%clk 0:00:03]}  Nc5 {[%clk 0:00:38]} 30. hxg6 {[%clk 0:00:03]}  Qxd3 {[%clk 0:00:37]} 31. gxf7+ {[%clk 0:00:03]}  Kxf7 {[%clk 0:00:37]} 32. Qh5+ {[%clk 0:00:02]}  Qg6 {[%clk 0:00:37]} 33. Qh3 {[%clk 0:00:03]}  Nd3 {[%clk 0:00:33]} 34. Red1 {[%clk 0:00:01]}  Nf4 {[%clk 0:00:33]} 35. Qf3 {[%clk 0:00:02]}  Qf5 {[%clk 0:00:32]} 36. Kf1 {[%clk 0:00:01]}  Rg8 {[%clk 0:00:32]} 37. g3 {[%clk 0:00:01]}  Qh3+ {[%clk 0:00:28]} 38. Kg1 {[%clk 0:00:01]}  Rg4 {[%clk 0:00:19]} 0-1


[Site "https://www.chess.com"]